bitfinex/quotes_ETHUSD_20220311
["timestamp","ask_amount","ask_price","bid_price","bid_amount"]
[1646975174862,0.3,2538.5,2538.3,0.0018928]
[1646975175260,0.08404503,2538.4,2538.3,0.00188806]
[1646975175661,0.00729786,2538.6,2538.3,0.00188806]
[1646975175862,0.3,2538.5,2538.3,0.00188806]
[1646975176060,0.06962345,2538.4,2538.3,0.00188806]
[1646975176262,0.00729786,2538.6,2538.2,1.07928273]
[1646975176461,0.00729786,2538.6,2538.3,0.00188806]
[1646975177121,0.08601998,2538.6,2538.3,0.00188806]
[1646975177516,0.08601998,2538.6,2538.2,1.07928273]
[1646975177716,0.08601998,2538.6,2538.3,0.00188805]
[1646975178520,0.98499,2538.5,2538.3,0.00188805]
[1646975178720,0.98499,2538.5,2538.1,0.0083742]
[1646975178721,0.3762103,2538.4,2538.1,0.0083742]
[1646975179120,0.3762103,2538.4,2538.3,0.00189278]
[1646975179519,2.2702687,2538.4,2538.3,0.00189278]
[1646975179722,3.2702687,2538.4,2538.3,0.00189278]
[1646975180022,2.2850987,2538.4,2538.1,0.0083742]
[1646975180224,3.2850987,2538.4,2538.2,0.00189283]
[1646975180420,1.3,2538.4,2538.2,0.00189283]
[1646975180621,2.3,2538.4,2538.2,0.00189283]
[1646975180860,0.3,2538.4,2538.2,0.00189283]
[1646975181062,0.3,2538.4,2538.1,0.0083742]
[1646975181261,1.00729786,2538.6,2538.1,0.0083742]
[1646975181262,0.00729786,2538.6,2538.1,0.0083742]
[1646975181463,0.30729786,2538.6,2538.2,0.00189287]
[1646975181663,0.00729786,2538.6,2538.2,0.00189287]
[1646975182169,0.98501,2538.5,2538.2,0.00189287]
[1646975182366,0.3,2538.4,2538.3,1.5]
[1646975182567,0.3,2538.4,2538.3,0.50168459]
[1646975183470,0.3,2538.4,2538.3,0.5]
[1646975188410,4.262,2538.4,2538.3,0.5]
[1646975188608,0.762,2538.4,2538.3,0.5]
[1646975188809,1.762,2538.4,2538.3,0.5]
[1646975189010,1.762,2538.4,2538.2,0.0015138]
[1646975189211,6.0,2538.2,2537.7,0.2028942]
[1646975189411,6.0,2538.2,2537.7,0.0060942]
[1646975189412,5.9326261,2538.1,2537.7,0.0060942]
[1646975189610,0.06876888,2537.8,2537.7,0.0060942]
[1646975191612,1.06876888,2537.8,2537.7,0.0060942]
[1646975192426,1.05405888,2537.8,2537.7,0.0060942]
[1646975192622,0.06876888,2537.8,2537.7,0.0060942]
[1646975193621,1.05404888,2537.8,2537.7,0.0060942]
[1646975194722,0.06876888,2537.8,2537.7,0.0060942]
[1646975195324,1.05404888,2537.8,2537.7,0.0060942]
[1646975195963,0.06876888,2537.8,2537.7,0.0060942]
[1646975202424,1.05403888,2537.8,2537.7,0.0060942]
[1646975202827,2.02839471,2537.8,2537.7,0.0060942]
[1646975207116,1.05403888,2537.8,2537.7,0.0060942]
[1646975208319,0.06876888,2537.8,2537.7,0.0060942]
[1646975208521,1.97042,2538.2,2537.7,0.0060942]
[1646975208522,1.9701817,2538.2,2537.7,0.0060942]
[1646975208819,0.06938766,2538.0,2537.7,0.0060942]
[1646975210222,0.06938766,2538.0,2537.7,0.00753965]
[1646975211062,0.99442669,2538.0,2537.7,0.0060942]
[1646975211263,0.0870066,2537.8,2537.7,0.0060942]
[1646975211563,0.0870066,2537.8,2537.7,0.00753965]
[1646975212268,0.0870066,2537.8,2537.7,0.0060942]
[1646975213068,0.08616254,2537.8,2537.7,0.0060942]
[1646975214914,3.58616254,2537.8,2537.7,0.0060942]
[1646975215112,0.08616254,2537.8,2537.7,0.0060942]
[1646975215313,1.08616254,2537.8,2537.7,0.0060942]
[1646975215514,0.08616254,2537.8,2537.7,0.0060942]
[1646975218463,1.07146254,2537.8,2537.7,0.0060942]
[1646975219566,2.07146254,2537.8,2537.7,0.0060942]
[1646975220771,5.57146254,2537.8,2537.7,0.0060942]
[1646975220967,2.07146254,2537.8,2537.7,0.0060942]
[1646975221167,3.07146254,2537.8,2537.7,0.0060942]
[1646975221369,5.57146254,2537.8,2537.7,0.0060942]
[1646975221568,6.57146254,2537.8,2537.7,0.0060942]
[1646975221768,3.07146254,2537.8,2537.7,0.0060942]
[1646975222025,2.07146254,2537.8,2537.7,0.0060942]
[1646975222220,1.07146254,2537.8,2537.7,0.0060942]
[1646975222421,2.07146254,2537.8,2537.7,0.0060942]
[1646975222621,1.08616254,2537.8,2537.7,0.0060942]
[1646975223220,0.08616254,2537.8,2537.7,0.0060942]
[1646975225021,1.71186605,2537.8,2537.7,0.0060942]
[1646975225420,1.71191629,2537.8,2537.7,0.0060942]
[1646975225622,0.08616254,2537.8,2537.7,0.0060942]
[1646975226270,1.71194151,2537.8,2537.7,0.0060942]
[1646975227277,1.08616254,2537.8,2537.7,0.0060942]
[1646975227472,0.08616254,2537.8,2537.7,0.0060942]
[1646975228575,1.07143254,2537.8,2537.7,0.0060942]
[1646975229374,0.08616254,2537.8,2537.7,0.0060942]
[1646975230215,0.08616254,2537.8,2537.7,1.0656062]
[1646975230814,0.08616254,2537.8,2537.7,0.0060942]
[1646975231217,0.3,2537.9,2537.7,0.0060942]
[1646975231817,0.98506,2538.0,2537.7,1.13607039]
[1646975232219,0.3,2537.9,2537.7,1.13607039]
[1646975232422,4.2,2537.9,2537.7,1.13607039]
[1646975232920,4.2,2537.9,2537.7,1.13782954]
[1646975233767,4.2,2537.9,2537.7,1.14782954]
[1646975233966,4.2,2537.9,2537.7,0.0160942]
[1646975234167,4.2,2537.9,2537.7,0.01785335]
[1646975235169,4.2,2537.9,2537.7,0.0160942]
[1646975235170,3.9,2537.9,2537.7,0.0160942]
[1646975235369,3.9,2537.9,2537.7,0.01785335]
[1646975235569,1.0,2538.6,2537.8,0.82030021]
[1646975235770,0.08363654,2538.8,2537.9,3.5467269]
[1646975235968,0.00387704,2538.9,2538.0,1.03380181]
[1646975236169,0.00387704,2538.9,2538.3,3.0]
[1646975236373,1.0,2539.3,2538.5,6.0]
[1646975236569,0.00324741,2538.9,2538.7,0.94341845]
[1646975236769,0.00324741,2538.9,2538.8,3.5]
[1646975237219,0.00324741,2538.9,2538.8,4.5]
[1646975237419,2.99406213,2539.7,2538.8,4.5]
[1646975237420,0.3937,2539.7,2538.8,4.5]
[1646975237619,0.07053856,2539.9,2538.9,0.06247176]
[1646975237823,1.62463454,2539.8,2538.9,0.06247176]
[1646975238020,1.62463454,2539.7,2538.9,0.06247176]
[1646975238219,0.98432,2539.9,2538.9,0.06247176]
[1646975238419,0.98432,2539.9,2539.5,0.99532941]
[1646975238820,0.98432,2539.9,2539.7,0.062666]
[1646975239223,1.28432,2539.9,2539.5,0.99532941]
[1646975239822,1.28432,2539.9,2539.8,0.062666]
[1646975240226,0.98432,2539.9,2539.8,0.062666]
[1646975240427,3.9,2540.0,2539.6,3.5]
[1646975240868,3.9,2540.0,2539.8,0.062666]
[1646975241067,2.60036213,2540.2,2539.9,6.0]
[1646975241270,0.19393037,2541.0,2540.0,3.5]
[1646975241470,0.06116874,2541.1,2540.1,0.06483111]
[1646975241672,0.06116874,2541.1,2540.2,0.05836327]
[1646975241872,1.69055869,2541.0,2540.4,0.93556813]
[1646975242072,1.95582666,2541.1,2540.4,0.93556813]
[1646975242073,0.07797889,2540.8,2540.4,0.93556813]
[1646975242274,0.06525213,2540.7,2540.4,0.93556813]
[1646975242473,0.79685984,2540.3,2540.2,4.37150691]
[1646975242673,0.79685984,2540.3,2540.2,0.87150691]
[1646975243374,1.09685984,2540.3,2540.2,0.87150691]
[1646975244279,0.79685984,2540.3,2540.2,0.87150691]
[1646975247120,0.79685984,2540.3,2539.7,1.601]
[1646975247621,0.07225638,2540.2,2539.7,1.601]
[1646975248265,0.07225638,2540.2,2539.8,0.90538592]
[1646975248465,1.05647638,2540.2,2539.8,0.90538592]
[1646975248667,0.00388432,2540.1,2539.8,0.90538592]
[1646975249570,0.07225638,2540.2,2539.8,0.90538592]
[1646975249968,0.00382505,2540.1,2539.8,0.90538592]
[1646975250771,0.07225638,2540.2,2539.8,0.90538592]
[1646975250971,3.9,2540.1,2539.8,0.90538592]
[1646975251171,3.90382505,2540.1,2539.8,0.90538592]
[1646975252016,3.9,2540.1,2539.8,0.90538592]
[1646975252233,3.90382505,2540.1,2539.8,0.90538592]
[1646975252435,3.90382505,2540.1,2539.7,1.601]
[1646975252626,3.90382505,2540.1,2539.5,2.7868]
[1646975252826,3.90382505,2540.1,2539.4,1.1565]
[1646975253028,3.90382505,2540.1,2539.4,2.14064]
[1646975253229,3.9,2540.1,2539.4,2.14064]
[1646975253430,0.00377645,2539.9,2539.6,1.07930934]
[1646975254331,3.9,2540.1,2539.6,1.07930934]
[1646975254732,0.00377645,2539.9,2539.6,1.07930934]
[1646975255533,0.06161479,2540.0,2539.6,1.07930934]
[1646975255774,0.06161479,2540.0,2539.4,4.00866508]
[1646975255974,0.00377645,2539.9,2539.6,0.98403]
[1646975256773,0.06161479,2540.0,2539.6,0.98403]
[1646975256975,3.9,2540.1,2539.9,1.0346863]
[1646975257780,0.07256044,2540.6,2540.0,6.0]
[1646975257982,4.32971,2541.4,2541.0,0.96371055]
[1646975257983,0.45890403,2541.4,2541.0,0.96371055]
[1646975258181,0.06637313,2541.3,2541.0,0.96371055]
[1646975259537,0.07016028,2541.3,2540.6,4.1308909]
[1646975259726,0.07016028,2541.3,2540.6,3.9341909]
[1646975260426,0.06637313,2541.3,2540.6,3.9341909]
[1646975260627,0.00378472,2541.1,2540.6,3.9341909]
[1646975260826,0.00378472,2541.1,2540.6,4.96972567]
[1646975261026,0.06426664,2541.1,2540.6,4.96972567]
[1646975261431,0.00378472,2541.1,2540.6,1.03553477]
[1646975261629,0.06165907,2541.3,2540.6,1.03553477]
[1646975261928,0.00378474,2541.0,2540.6,1.03553477]
[1646975262335,0.07004775,2541.0,2540.6,1.03553477]
[1646975262536,0.07004775,2541.0,2540.5,0.1967]
[1646975262737,3.57004775,2541.0,2540.2,7.5831]
[1646975262943,0.07661125,2540.9,2540.2,1.6619]
[1646975263145,0.08015539,2540.9,2540.2,1.6619]
[1646975263368,0.08015539,2540.9,2540.8,0.0064355]
[1646975263569,0.012871,2540.5,2540.3,0.89304145]
[1646975264372,0.01641576,2540.5,2540.3,0.89304145]
[1646975264972,0.01641576,2540.5,2540.4,0.1968]
[1646975265372,0.012871,2540.5,2540.4,0.1968]
[1646975265573,0.01641576,2540.5,2540.4,0.1968]
[1646975266373,0.012871,2540.5,2540.4,0.1968]
[1646975267423,0.012871,2540.5,2540.3,0.89304145]
[1646975269124,0.01665625,2540.5,2540.2,1.8587]
[1646975269725,3.91665625,2540.5,2540.2,1.8587]
[1646975269928,0.06322344,2540.4,2540.2,0.1968]
[1646975270126,3.912871,2540.5,2540.0,0.1968]
[1646975270330,3.912871,2540.5,2540.1,1.99739648]
[1646975270331,3.91665625,2540.5,2540.1,1.99739648]
[1646975271466,0.00378529,2540.4,2540.1,1.99739648]
[1646975271664,0.00378529,2540.4,2540.3,0.98379]
[1646975271864,0.00378529,2540.4,2540.3,1.117924]
[1646975272471,3.912871,2540.5,2540.3,1.117924]
[1646975272669,3.912871,2540.5,2540.4,0.1968]
[1646975272670,8.528e-05,2540.5,2540.4,0.1968]
[1646975272874,8.528e-05,2540.5,2540.4,1.18041]
[1646975273671,0.06675745,2541.5,2540.4,1.18041]
[1646975273870,0.06675745,2541.5,2540.4,3.98887189]
[1646975274070,0.06675745,2541.5,2540.4,4.98887189]
[1646975274373,0.06675745,2541.5,2541.0,0.98361]
[1646975274625,0.06675745,2541.5,2540.7,1.96721]
[1646975274626,0.06675745,2541.5,2540.7,2.95075]
[1646975276021,0.06675745,2541.5,2540.7,5.9014091]
[1646975276222,0.06675745,2541.5,2541.0,0.90689821]
[1646975277021,0.06675745,2541.5,2540.9,1.96702]
[1646975277228,0.06675745,2541.5,2540.6,0.1967]
[1646975277626,0.00378826,2541.4,2540.6,0.1967]
[1646975278471,1.01225233,2541.2,2540.7,1.0380316]
[1646975278670,0.059853,2541.1,2540.7,1.0380316]
[1646975279675,0.05686982,2541.4,2540.7,2.0217416]
[1646975279873,0.00382242,2541.0,2540.7,2.0217416]
[1646975280073,0.00382242,2541.0,2540.7,1.0380316]
[1646975281078,0.06753875,2541.0,2540.5,2.9821]
[1646975281274,0.06753875,2541.0,2540.5,1.7824]
[1646975281673,0.07136117,2541.0,2540.5,1.5857]
[1646975281872,0.07136117,2541.0,2540.5,2.4368087]
[1646975282124,0.07136117,2541.0,2540.5,1.5357]
[1646975282426,0.00377934,2540.9,2540.5,1.5357]
[1646975283526,0.00377935,2540.8,2540.5,1.396784]
[1646975284227,0.00377935,2540.8,2540.5,2.380564]
[1646975284728,0.00795582,2541.5,2540.5,3.509764]
[1646975284929,0.00795582,2541.5,2540.5,4.518164]
[1646975284930,0.00377936,2540.8,2540.5,4.518164]
[1646975285128,0.00377936,2540.8,2540.5,5.518164]
[1646975285328,0.00377936,2540.8,2540.5,6.5018534]
[1646975285628,0.00377936,2540.8,2540.6,1.96724]
[1646975285874,0.0653213,2541.4,2540.6,1.96724]
[1646975286071,0.00343258,2540.8,2540.6,2.95086]
[1646975286869,0.06430969,2541.7,2540.6,2.95086]
[1646975287073,1.62335617,2541.6,2541.1,0.92267127]
[1646975287274,0.0564663,2541.5,2540.6,2.95086]
[1646975287472,0.0564663,2541.5,2540.7,0.98361]
[1646975287874,0.0564663,2541.5,2540.7,1.9672202]
[1646975288276,0.0564663,2541.5,2541.1,0.89908057]
[1646975288479,0.0034325,2541.2,2541.1,1.84838057]
[1646975289533,0.0564663,2541.5,2541.1,1.84838057]
[1646975289720,0.00298907,2541.3,2541.1,1.84838057]
[1646975290123,0.00298907,2541.3,2541.1,0.9493]
[1646975290322,0.00298907,2541.3,2540.8,3.30574997]
[1646975290522,0.0564663,2541.5,2540.8,3.30574997]
[1646975290726,0.0564663,2541.5,2540.8,3.887947]
[1646975290924,0.00301688,2541.3,2540.8,3.887947]
[1646975291421,0.83172059,2541.3,2540.8,4.96161728]
[1646975291626,0.83172059,2541.3,2540.8,3.76111728]
[1646975291821,0.1564663,2541.5,2540.8,3.76111728]
[1646975292226,0.00301688,2541.2,2540.8,3.76111728]
[1646975292728,0.00301688,2541.2,2540.8,7.76111728]
[1646975292929,0.1,2541.5,2540.8,7.76111728]
[1646975293129,0.1,2541.5,2540.8,9.95507148]
[1646975293382,0.1,2541.5,2541.0,0.98355]
[1646975293383,0.00356143,2541.1,2541.0,0.98355]
[1646975293685,0.00356143,2541.1,2541.0,1.44555]
[1646975293881,6.143e-05,2541.1,2541.0,1.44555]
[1646975294081,6.143e-05,2541.1,2541.0,4.44555]
[1646975294281,0.1,2541.5,2541.1,2.9497455]
[1646975294481,0.00357386,2541.2,2541.1,2.9497455]
[1646975294880,0.00357386,2541.2,2541.1,3.9497455]
[1646975295481,0.1,2541.5,2541.1,3.9497455]
[1646975295685,0.1,2541.5,2541.2,1.03491646]
[1646975295884,0.1,2541.5,2541.2,3.00142366]
[1646975296081,0.1,2541.5,2541.3,1.96652]
[1646975297127,0.1,2541.5,2541.3,4.9162875]
[1646975297328,0.1,2541.5,2541.3,5.9162875]
[1646975298227,0.10389002,2541.5,2541.3,6.8995295]
[1646975298427,0.10389002,2541.5,2541.4,0.98325]
[1646975299030,0.1,2541.5,2541.4,0.98325]
[1646975302182,0.06819286,2542.5,2541.5,5.6]
[1646975302485,7.14242369,2543.3,2541.5,5.6]
[1646975302486,0.04765091,2542.9,2541.8,6.9831]
[1646975302678,0.0510738,2543.2,2542.2,0.81561628]
[1646975302877,0.0510738,2543.2,2542.8,0.99796226]
[1646975303077,0.0510738,2543.2,2542.8,2.20366226]
[1646975303677,0.0510738,2543.2,2542.9,0.9828]
[1646975304920,0.94382509,2543.4,2542.9,0.9828]
[1646975305122,0.05191244,2543.9,2543.1,0.9827144]
[1646975305322,0.04757608,2543.7,2543.3,0.98272]
[1646975305722,0.04371328,2544.1,2543.3,0.98272]
[1646975306121,1.67174933,2544.0,2543.6,0.87079839]
[1646975306323,0.85954674,2543.5,2543.4,4.47598015]
[1646975306528,0.85954674,2543.5,2543.4,6.44117015]
[1646975306725,1.04205631,2544.4,2543.7,0.98246]
[1646975306925,1.04205631,2544.4,2543.8,3.5]
[1646975307529,1.0,2544.4,2544.3,0.92308078]
[1646975307928,1.0,2544.4,2544.3,1.90539078]
[1646975309185,1.0,2544.4,2544.3,5.40539078]
[1646975309384,0.00389231,2544.5,2544.3,5.40539078]
[1646975310084,0.00389231,2544.5,2544.3,0.98231]
[1646975310300,0.85263185,2544.9,2544.0,3.5]
[1646975310482,0.0038923,2544.5,2543.9,1.96478]
[1646975310882,0.0038923,2544.5,2543.8,3.5]
[1646975311082,0.0038923,2544.5,2544.2,1.0552089]
[1646975311487,1.15263185,2544.9,2544.2,1.0552089]
[1646975311686,0.00359093,2544.5,2544.2,1.0552089]
[1646975312627,1.15263185,2544.9,2544.2,1.0552089]
[1646975312828,0.00359093,2544.5,2544.2,1.0552089]
[1646975313228,0.01494352,2544.5,2544.2,1.0552089]
[1646975313828,0.01135259,2544.5,2544.2,1.0552089]
[1646975314033,0.00359093,2544.5,2544.2,2.0376089]
[1646975314232,0.00359093,2544.5,2544.2,0.9824]
[1646975315131,1.11398444,2544.9,2544.2,0.9824]
[1646975315331,0.01430529,2544.5,2544.2,0.9824]
[1646975316068,0.01430529,2544.5,2544.2,4.4824]
[1646975316269,0.01052384,2544.5,2544.2,4.4824]
[1646975316569,0.01430529,2544.5,2544.2,4.4824]
[1646975316775,0.01430529,2544.5,2544.3,0.08200218]
[1646975316776,0.00010529,2544.5,2544.3,0.08200218]
[1646975316972,0.00010529,2544.5,2544.4,0.98219]
[1646975317175,0.00010529,2544.5,2544.4,4.48219]
[1646975317377,0.00010529,2544.5,2544.4,4.94419]
[1646975317575,0.00204823,2545.6,2544.4,4.94419]
[1646975317576,0.00204823,2545.8,2544.4,4.94419]
[1646975317775,0.00204823,2545.6,2544.6,1.96413]
[1646975317974,1.62133607,2545.8,2545.4,1.09448835]
[1646975317975,0.00204823,2545.8,2545.4,1.09448835]
[1646975318176,1.98586409,2545.9,2545.4,1.09448835]
[1646975318975,0.00355436,2545.8,2545.4,1.09448835]
[1646975319631,0.00355436,2545.8,2545.0,3.5]
[1646975319835,2.28586409,2545.9,2544.9,3.4824]
[1646975320031,2.28586409,2545.9,2545.0,3.5]
[1646975320232,0.00355437,2545.7,2545.0,3.5]
[1646975320632,1.00347577,2545.4,2544.9,4.31379979]
[1646975320832,1.00347577,2545.4,2544.9,0.83139979]
[1646975321233,0.00355446,2545.3,2544.9,0.83139979]
[1646975321439,1.07945446,2545.3,2544.5,0.07675044]
[1646975321638,0.9824684,2545.2,2544.6,1.7434]
[1646975321833,1.2824684,2545.2,2544.6,1.7434]
[1646975322642,0.00346648,2545.0,2544.6,1.7434]
[1646975323474,0.34577854,2545.2,2544.6,1.7434]
[1646975323671,0.0034665,2544.9,2544.6,1.7434]
[1646975324684,0.89799318,2545.1,2544.5,0.9460662]
[1646975324981,0.00346651,2544.9,2544.5,0.9460662]
[1646975325177,0.00346651,2544.9,2544.4,5.8203]
[1646975325478,0.00346651,2544.9,2544.4,3.5]
[1646975325678,0.00346651,2544.9,2544.3,4.0852]
[1646975325878,1.19799318,2545.1,2544.4,3.5]
[1646975326076,0.0034686,2544.8,2544.4,3.5]
[1646975326278,0.0034686,2544.8,2544.4,0.95503793]
[1646975327130,0.98248,2545.0,2544.4,0.95503793]
[1646975327335,0.00346861,2544.7,2544.4,4.45503793]
[1646975327730,0.91433815,2544.7,2544.4,0.95503793]
[1646975328330,0.91086954,2544.7,2544.4,0.95503793]
[1646975328530,0.91433816,2544.7,2544.4,0.95503793]
[1646975328732,0.91433816,2544.7,2544.5,0.00407571]
[1646975328933,0.00815141,2544.4,2544.2,3.5]
[1646975329136,0.00815141,2544.4,2544.1,4.15169825]
[1646975329936,0.00815141,2544.4,2544.2,0.08462348]
[1646975330769,0.00815141,2544.4,2544.2,1.17234571]
[1646975330974,0.00815141,2544.4,2544.2,0.08462348]
[1646975331974,0.00815141,2544.4,2544.2,1.02666299]
[1646975333785,0.00815141,2544.4,2544.1,3.4824]
[1646975333983,0.00815141,2544.4,2544.0,0.13819997]
[1646975334182,0.00815141,2544.4,2543.9,1.2186]
[1646975334829,0.05509347,2544.4,2543.9,1.2186]
[1646975335828,1.0637532,2544.2,2543.9,1.2186]
[1646975336030,1.0637532,2544.2,2543.8,1.7206]
[1646975336428,1.0637532,2544.2,2543.7,0.9510006]
[1646975336934,1.0637532,2544.2,2543.6,0.07077255]
[1646975338376,1.0637532,2544.2,2543.3,5.858]
[1646975338377,0.05139224,2544.1,2543.3,5.858]
[1646975338575,0.05139224,2544.1,2543.1,2.30065004]
[1646975338576,3.55139224,2544.1,2543.1,2.30065004]
[1646975338775,3.55139224,2544.1,2543.0,9.8472]
[1646975338776,1.0,2543.7,2543.0,9.8472]
[1646975338974,1.0,2543.7,2542.8,0.25]
[1646975338975,0.98308,2543.5,2542.8,0.25]
[1646975339174,0.88228577,2543.3,2542.8,1.01332528]
[1646975339376,0.04448134,2543.2,2542.8,1.01332528]
[1646975339777,0.04445743,2544.0,2542.8,1.01332528]
[1646975339974,0.04445743,2544.0,2542.9,0.07577566]
[1646975340289,3.54445743,2544.0,2542.9,0.07577566]
[1646975340473,0.04693985,2543.9,2542.9,0.07577566]
[1646975340674,0.98231605,2543.6,2542.9,0.07577566]
[1646975341077,0.04659542,2543.5,2542.9,0.07577566]
[1646975341279,1.28231605,2543.6,2542.9,0.07577566]
[1646975342034,2.26537605,2543.6,2542.9,0.07577566]
[1646975342230,1.28231605,2543.6,2543.2,0.90974131]
[1646975342427,0.3,2543.6,2543.2,0.90974131]
[1646975342627,0.04203627,2543.8,2543.2,0.90974131]
[1646975343327,0.04203627,2543.8,2543.7,0.97664462]
[1646975343530,1.0,2544.0,2543.7,0.97664462]
[1646975344426,0.9,2544.0,2543.7,0.97664462]
[1646975344831,0.9,2544.0,2543.7,1.95920462]
[1646975345029,0.05764551,2544.4,2543.8,5.5]
[1646975345229,0.00815141,2544.4,2543.9,0.07332611]
[1646975345875,0.00815141,2544.4,2544.0,9.8458]
[1646975346074,0.00815141,2544.4,2544.1,1.02361495]
[1646975346277,0.00815141,2544.4,2544.2,0.08807776]
[1646975347081,0.00815141,2544.4,2544.2,1.07040326]
[1646975347480,0.00815141,2544.4,2544.2,0.08807776]
[1646975348282,0.00815141,2544.4,2544.0,11.0766]
[1646975348582,0.00815141,2544.4,2544.0,9.8458]
[1646975348979,0.00815141,2544.4,2543.7,0.07404754]
[1646975349180,0.00815141,2544.4,2543.7,0.93566081]
[1646975351334,0.00815141,2544.4,2543.7,1.91825061]
[1646975351535,1.62155326,2544.3,2543.7,1.91825061]
[1646975351936,1.62155326,2544.3,2543.7,0.93566081]
[1646975352138,1.62155326,2544.3,2543.7,1.91831081]
[1646975352341,0.00815141,2544.4,2543.7,1.91831081]
[1646975352541,1.6215911,2544.3,2543.4,0.33591868]
[1646975352741,0.04263964,2544.1,2543.3,1.7581]
[1646975352945,0.04263964,2544.1,2542.6,1.96567]
[1646975352946,1.6215911,2544.0,2542.9,1.2851738]
[1646975353145,0.0517559,2543.9,2542.9,1.2851738]
[1646975353377,0.0535883,2543.8,2542.9,1.2851738]
[1646975353579,0.0535883,2543.8,2543.0,1.02237347]
[1646975353580,0.90749447,2543.5,2543.0,1.02237347]
[1646975354377,0.90749447,2543.5,2543.0,2.00525347]
[1646975355077,0.90749447,2543.5,2543.1,0.98289]
[1646975355278,0.90749447,2543.5,2543.1,1.9657649]
[1646975356880,0.4792,2543.6,2543.1,1.9657649]
[1646975357528,3.55245298,2543.5,2542.7,7.33]
[1646975357729,0.04173926,2543.4,2542.7,7.33]
[1646975358128,0.462,2543.4,2542.7,7.33]
[1646975358331,0.04984137,2543.3,2542.7,7.33]
[1646975358530,0.84058528,2543.2,2542.2,4.46079044]
[1646975358830,0.82705875,2542.6,2542.3,0.08429464]
[1646975359029,0.82705875,2542.6,2542.1,0.00626257]
[1646975359628,0.82705875,2542.6,2542.0,2.83097531]
[1646975360029,0.5421,2542.7,2542.0,2.83097531]
[1646975360532,3.55374508,2543.1,2542.0,2.83097531]
[1646975360774,0.05374508,2543.1,2542.0,2.83097531]
[1646975361176,1.0916225,2542.7,2542.2,1.00279613]
[1646975361579,0.05374508,2543.1,2542.3,0.07197676]
[1646975362681,0.92528762,2543.0,2542.3,0.07197676]
[1646975362881,0.92528762,2543.0,2542.6,0.84322129]
[1646975363282,0.3,2543.0,2542.6,0.84322129]
[1646975363485,4.21074263,2543.1,2542.3,0.07197676]
[1646975363682,0.04251472,2542.9,2542.2,7.33]
[1646975364082,0.34251472,2542.9,2542.2,7.33]
[1646975364284,1.98354,2542.7,2542.2,7.33]
[1646975364544,0.85690867,2542.5,2542.2,7.33]
[1646975364736,1.15690867,2542.5,2542.0,2.70255515]
[1646975365336,1.15690867,2542.5,2542.0,1.63972911]
[1646975365535,1.15690867,2542.5,2542.0,1.6335]
[1646975366142,1.51860867,2542.5,2542.0,1.6335]
[1646975366338,0.6617,2542.5,2542.0,1.6335]
[1646975366540,0.3,2542.5,2542.0,1.6335]
[1646975366739,0.3,2542.8,2542.0,1.6335]
[1646975366940,0.35117915,2542.8,2542.0,1.6335]
[1646975367144,0.05117915,2542.8,2542.0,1.6335]
[1646975367543,0.05117915,2542.8,2542.1,0.08449272]
[1646975367743,0.05117915,2542.8,2542.2,2.07093899]
[1646975367744,1.08553146,2542.7,2542.2,2.07093899]
[1646975368142,1.38553146,2542.7,2542.2,1.08771899]
[1646975368576,0.00854612,2542.4,2542.2,1.08771899]
[1646975369779,0.00758027,2542.4,2542.2,1.08771899]
[1646975370176,0.00758027,2542.4,2542.2,2.07094909]
[1646975370479,0.00758027,2542.4,2542.3,0.08087964]
[1646975370480,8.027e-05,2542.4,2542.3,0.08087964]
[1646975373444,0.3,2543.2,2542.6,0.07724136]
[1646975373647,2.35079564,2543.3,2542.6,0.07724136]
[1646975373848,3.35079564,2543.3,2542.6,0.07724136]
[1646975374045,2.35079564,2543.3,2542.6,0.07724136]
[1646975374245,3.35079564,2543.3,2542.7,1.0810468]
[1646975374444,2.35079564,2543.3,2542.7,1.0810468]
[1646975374645,3.35079564,2543.3,2542.7,1.0810468]
[1646975374845,2.35079564,2543.3,2542.7,1.0810468]
[1646975375044,3.35079564,2543.3,2542.7,1.0810468]
[1646975375246,2.35079564,2543.3,2542.7,1.0810468]
[1646975376078,2.35079564,2543.3,2542.6,0.07724136]
[1646975376676,1.35079564,2543.3,2542.4,0.08265236]
[1646975376977,1.0,2543.1,2542.4,0.08265236]
[1646975377181,0.88673829,2542.8,2542.4,0.08265236]
[1646975377381,0.88673829,2542.8,2542.2,0.0820846]
[1646975377580,0.05168984,2542.7,2542.2,0.00359815]
[1646975378482,0.05168984,2542.7,2542.1,2.12329231]
[1646975378880,0.05168984,2542.7,2542.1,2.11606632]
[1646975379084,0.05168984,2542.7,2542.1,1.1959]
[1646975380531,0.96096634,2542.3,2542.1,1.1959]
[1646975380732,0.96096634,2542.3,2542.0,1.63750628]
[1646975380930,0.96096634,2542.3,2542.0,0.00400628]
[1646975383379,0.96096634,2542.3,2542.0,0.00643343]
[1646975386383,0.04434116,2542.4,2542.0,0.00643343]
[1646975386582,0.04965045,2542.7,2542.0,0.00643343]
[1646975386781,3.54965045,2542.7,2542.0,0.00643343]
[1646975387040,0.04294888,2542.6,2542.0,0.00643343]
[1646975387433,0.83458842,2542.4,2542.0,0.00643343]
[1646975389538,0.04294888,2542.6,2542.0,0.00643343]
[1646975390974,1.12885113,2542.6,2542.0,0.00643343]
[1646975393180,1.127294,2542.6,2542.0,0.00643343]
[1646975394630,1.08590225,2542.6,2542.2,0.83296445]
[1646975398383,1.0,2542.7,2542.3,0.0078889]
[1646975398578,0.05109232,2543.0,2542.3,0.0078889]
[1646975398979,0.35109232,2543.0,2542.3,0.0078889]
[1646975399380,1.06667268,2542.9,2542.3,0.08165359]
[1646975400184,1.06667268,2542.9,2542.3,1.06485919]
[1646975401786,1.3,2543.1,2542.3,1.06485919]
[1646975402037,1.62229645,2543.0,2542.3,1.06485919]
[1646975402832,2.55531301,2543.0,2542.3,1.06485919]
[1646975403231,1.62229645,2542.9,2542.3,1.06485919]
[1646975403432,0.93301656,2543.0,2542.3,1.06485919]
[1646975404432,0.93301656,2543.0,2542.3,0.08165359]
[1646975404631,1.0,2543.1,2542.6,0.84270282]
[1646975404833,0.05140604,2543.3,2542.7,3.5]
[1646975405035,2.96533533,2543.6,2542.6,0.84270282]
[1646975405036,1.62216738,2543.2,2542.6,0.84270282]
[1646975405236,0.04194568,2543.1,2542.6,0.84270282]
[1646975405435,1.0,2543.4,2542.6,0.932346]
[1646975405633,1.62214188,2543.3,2542.6,0.932346]
[1646975406082,1.92214188,2543.3,2542.6,0.932346]
[1646975406285,1.62214188,2543.2,2542.6,0.932346]
[1646975406481,0.85188922,2543.1,2542.6,0.932346]
[1646975407487,0.85188922,2543.1,2542.6,0.84270282]